fUST/lending_fUST_20250804
["ID","MTS","AMOUNT","RATE_DAILY","PERIOD"]
[377265973,1754308252482,-512.03,0.00034766,2]
[377265975,1754308252492,-678.4,0.00034766,2]
[377265977,1754308252502,-460.0,0.00034766,2]
[377265979,1754308252512,-3133.21,0.00034766,2]
[377265981,1754308252521,-10030.68,0.00034766,2]
[377265983,1754308252531,-803.44,0.00034766,2]
[377265985,1754308252541,-4739.37,0.00034766,2]
[377265987,1754308252551,-795.49,0.00034766,2]
[377265989,1754308252560,-460.0,0.00034766,2]
[377265991,1754308252570,-460.0,0.00034766,2]
[377265993,1754308252579,-460.0,0.00034766,2]
[377265995,1754308252589,-3740.78,0.00034766,2]
[377265997,1754308252598,-495.91,0.00034766,2]
[377265999,1754308252608,-2640.72,0.00034766,2]
[377266001,1754308252617,-460.0,0.00034766,2]
[377266003,1754308252627,-592.67,0.00034766,2]
[377266005,1754308252638,-925.26,0.00034766,2]
[377266007,1754308252648,-460.0,0.00034766,2]
[377266009,1754308252658,-754.8,0.00034766,2]
[377266011,1754308252668,-529.5,0.00034766,2]
[377266013,1754308252677,-914.26,0.00034766,2]
[377266015,1754308252687,-474.05,0.00034766,2]
[377266017,1754308252697,-592.4,0.00034766,2]
[377266019,1754308252707,-1920.41,0.00034766,2]
[377266022,1754308252717,-487.27,0.00034766,2]
[377266024,1754308252726,-841.39,0.00034766,2]
[377266026,1754308252736,-642.98,0.00034766,2]
[377266028,1754308252746,-151.0,0.00034766,14]
[377266030,1754308252755,-1987.48,0.00034766,2]
[377266032,1754308252765,-1101.5,0.00034766,2]
[377266034,1754308252774,-460.0,0.00034766,2]
[377266036,1754308252784,-833.04,0.00034766,2]
[377266038,1754308252794,-1564.73,0.00034766,2]
[377266040,1754308252806,-1201.04,0.00034766,2]
[377266042,1754308252816,-151.0,0.00034766,14]
[377266044,1754308252825,-460.0,0.00034766,2]
[377266046,1754308252835,-151.0,0.00034766,14]
[377266048,1754308252845,-746.64,0.00034766,2]
[377266050,1754308252854,-460.0,0.00034766,2]
[377266052,1754308252863,-4084.92,0.00034766,2]
[377266054,1754308252873,-2212.3,0.00034766,2]
[377266056,1754308252883,-637.88,0.00034766,2]
[377266058,1754308252893,-460.0,0.00034766,2]
[377266060,1754308252903,-633.26,0.00034767,2]
[377266062,1754308252913,-460.0,0.00034767,2]
[377266064,1754308252922,-460.0,0.00034767,2]
[377266066,1754308252933,-460.0,0.00034767,2]
[377266068,1754308252942,-460.0,0.00034767,2]
[377266070,1754308252953,-1119.62,0.00034767,2]
[377266072,1754308252962,-663.49,0.00034767,2]
[377266074,1754308252973,-460.0,0.00034767,2]
[377266076,1754308252982,-1845.63,0.00034767,2]
[377266078,1754308252991,-460.0,0.00034767,2]
[377266080,1754308253001,-460.0,0.00034767,2]
[377266082,1754308253011,-460.0,0.00034767,2]
[377266084,1754308253020,-920.06,0.00034767,2]
[377266086,1754308253030,-460.0,0.00034767,2]
[377266088,1754308253039,-487.91,0.00034767,2]
[377266090,1754308253049,-1387.74,0.00034767,2]
[377266093,1754308253059,-861.03,0.00034767,2]
[377266095,1754308253069,-151.0,0.00034767,14]
[377266097,1754308253079,-460.0,0.00034767,2]
[377266099,1754308253089,-460.0,0.00034767,2]
[377266101,1754308253099,-460.0,0.00034767,2]
[377266103,1754308253109,-484.39868453,0.00034767,2]
[377266105,1754308253119,-460.0,0.00034767,2]
[377266107,1754308253129,-460.0,0.00034767,2]
[377266108,1754308253139,-1344.93,0.00034767,2]
[377266110,1754308253149,-465.44162464,0.00034767,2]
[377266112,1754308253159,-460.0,0.00034767,2]
[377266115,1754308253169,-1388.55,0.00034767,2]
[377266117,1754308253178,-603.72,0.00034767,2]
[377266119,1754308253188,-460.0,0.00034767,2]
[377266121,1754308253197,-460.0,0.00034767,2]
[377266123,1754308253207,-460.0,0.00034767,2]
[377266125,1754308253216,-460.0,0.00034767,2]
[377266127,1754308253226,-460.0,0.00034767,2]
[377266129,1754308253235,-595.08,0.00034767,2]
[377266131,1754308253245,-460.0,0.00034767,2]
[377266133,1754308253254,-460.0,0.00034767,2]
[377266135,1754308253264,-1319.78,0.00034767,2]
[377266137,1754308253274,-991.06,0.00034767,2]
[377266139,1754308253284,-151.0,0.00034767,14]
[377266141,1754308253294,-777.44,0.00034767,2]
[377266143,1754308253304,-151.0,0.00034767,14]
[377266145,1754308253313,-151.0,0.00034767,14]
[377266147,1754308253323,-460.0,0.00034767,2]
[377266149,1754308253333,-320.59863217,0.00034767,2]
[377266151,1754308253343,-600.63,0.00034767,2]
[377266153,1754308253353,-1879.63,0.00034767,2]
[377266155,1754308253363,-460.0,0.00034767,2]
[377266157,1754308253372,-460.0,0.00034767,2]
[377266159,1754308253383,-1345.17,0.00034767,2]
[377266161,1754308253394,-560.68,0.00034767,2]
[377266163,1754308253404,-460.0,0.00034767,2]
[377266165,1754308253414,-460.0,0.00034767,2]
[377266167,1754308253423,-460.0,0.00034767,2]
[377266169,1754308253433,-460.0,0.00034767,2]
[377266171,1754308253442,-460.0,0.00034767,2]
[377266173,1754308253451,-1086.72,0.00034767,2]
[377266175,1754308253461,-540.52,0.00034767,2]
[377266177,1754308253469,-460.0,0.00034767,2]
[377266179,1754308253478,-1123.3,0.00034767,2]
[377266181,1754308253487,-460.0,0.00034767,2]
[377266183,1754308253497,-460.0,0.00034767,2]
[377266185,1754308253507,-526.97,0.00034767,2]
[377266187,1754308253516,-460.0,0.00034767,2]
[377266189,1754308253526,-460.0,0.00034767,2]
[377266191,1754308253535,-146.41608819,0.00034767,2]
[377266202,1754308253967,-152.389878,0.00034314,14]
[377266204,1754308253976,-265.73931605,0.00034767,2]
[377266206,1754308253986,-590.62,0.00034767,2]
[377266208,1754308253995,-214.10060929,0.00034767,2]
[377266236,1754308254260,-151.784196,0.0003384,14]
[377266238,1754308254270,-304.21218885,0.00033989,2]
[377266240,1754308254280,-49.01144205,0.000347,15]
[377266241,1754308254291,-101.98855795,0.000347,15]
[377266243,1754308254300,-467.10939071,0.00034767,2]
[377266245,1754308254310,-1500.0,0.00034768,2]
[377266247,1754308254319,-1500.0,0.00034768,5]
[377266249,1754308254329,-1646.67618749,0.00034768,5]
[377266251,1754308254338,-1500.0,0.00034768,5]
[377266253,1754308254348,-1500.0,0.00034768,5]
[377266255,1754308254357,-1500.0,0.00034768,5]
[377266257,1754308254367,-157.0,0.0003477,120]
[377266259,1754308254377,-150.0,0.00034773,5]
[377266261,1754308254387,-500.0,0.00034773,5]
[377266263,1754308254400,-157.0,0.0003478,120]
[377266265,1754308254410,-746.26,0.00034783,2]
[377266267,1754308254419,-862.9,0.00034783,2]
[377266269,1754308254428,-501.04,0.00034783,2]
[377266271,1754308254439,-460.0,0.00034783,2]
[377266273,1754308254448,-487.38,0.00034783,2]
[377266275,1754308254457,-1696.42,0.00034783,2]
[377266277,1754308254468,-1619.61,0.00034783,2]
[377266279,1754308254478,-251.365988,0.00034788,14]
[377266281,1754308254488,-151.0,0.00034788,14]
[377266283,1754308254497,-151.0,0.00034788,14]
[377266285,1754308254506,-865.503452,0.00034788,14]
[377266287,1754308254515,-865.503452,0.00034788,14]
[377266289,1754308254525,-151.0,0.00034788,14]
[377266291,1754308254534,-151.0,0.00034788,14]
[377266292,1754308254543,-927.49,0.00034788,2]
[377266294,1754308254553,-1004.335429,0.00034788,14]
[377266296,1754308254562,-1004.335429,0.00034788,14]
[377266298,1754308254571,-4865.27,0.00034788,2]
[377266300,1754308254581,-13535.12,0.00034788,2]
[377266302,1754308254590,-3286.26,0.00034788,2]
[377266304,1754308254599,-460.0,0.0003479,2]
[377266306,1754308254608,-460.0,0.0003479,2]
[377266308,1754308254617,-460.0,0.0003479,2]
[377266310,1754308254627,-536.5,0.0003479,2]
[377266312,1754308254637,-596.23,0.0003479,2]
[377266314,1754308254646,-460.0,0.0003479,2]
[377266316,1754308254656,-460.0,0.0003479,2]
[377266318,1754308254665,-460.0,0.0003479,2]
[377266320,1754308254675,-311.54466339,0.0003479,2]
[377266322,1754308254684,-467.1550865,0.0003479,2]
[377266324,1754308254693,-460.0,0.0003479,2]
[377266326,1754308254703,-460.0,0.0003479,2]
[377266328,1754308254712,-460.0,0.0003479,2]
[377266330,1754308254722,-200.89290835,0.0003479,2]
[377266543,1754308257006,-761.89,0.00034022,10]
[377266545,1754308257016,-301.96709165,0.0003479,2]
[377266547,1754308257025,-460.0,0.0003479,2]
[377266549,1754308257035,-460.0,0.0003479,2]
[377266551,1754308257043,-270.001061,0.0003479,14]
[377266553,1754308257053,-151.0,0.0003479,14]
[377266555,1754308257063,-151.0,0.0003479,14]
[377266557,1754308257072,-460.0,0.00034795,2]
[377266559,1754308257081,-460.0,0.00034795,2]
[377266561,1754308257091,-770.25318175,0.00034797,2]
[377266562,1754308257100,-498.31151203,0.00034797,2]
[377266564,1754308257109,-263.65847057,0.00034799,2]
[377266566,1754308257119,-37610.9195628,0.000348,7]
[377266647,1754308283940,150.0,0.00026403,2]
[377266649,1754308346061,218.864011,0.00032287,120]
[377266650,1754308358542,500.0,0.00032759,7]
[377266651,1754308369675,24900.0,0.00032405,2]
[377266652,1754308377561,1131.13696342,0.00032437,2]
[377266653,1754308378621,150.0,0.00026575,30]
[377266654,1754308380501,2273.62,0.00032437,30]
[377266655,1754308380906,523.281243,0.0003223,2]
[377266661,1754308432158,182.402533,0.00032502,2]
[377266663,1754308450980,2021.0,0.00032502,30]
[377266664,1754308479022,966.52507779,0.000333,2]
[377266665,1754308496046,-552.51678034,0.00033383,3]
[377266666,1754308498181,-383.22096222,0.00033383,3]
[377266667,1754308501437,3002.95006453,0.00033,30]
[377266668,1754308501949,-264.26225744,0.00033383,3]
[377266669,1754308501974,-84.0520171,0.00033383,7]
[377266670,1754308504164,-199.1146921,0.00033383,7]
[377266671,1754308506309,-218.45277274,0.00033383,7]
[377266672,1754308506333,-26.7452601,0.00033383,7]
[377266673,1754308509502,1213.12935848,0.000333,2]
[377266674,1754308509851,-286.6670854,0.00033383,7]
[377266675,1754308512132,-189.7295089,0.00033383,7]
[377266676,1754308512155,-269.45442891,0.00033383,2]
[377266677,1754308515054,-130.54557109,0.00033383,2]
[377266678,1754308515076,-227.79696091,0.00033383,3]
[377266679,1754308517566,315.66857658,0.000333,2]
[377266680,1754308518230,-172.20303909,0.00033383,3]
[377266681,1754308518254,-47.37802618,0.00033383,3]
[377266682,1754308521442,1796.44,0.000333,30]
[377266683,1754308521652,-222.15660986,0.00033383,3]
[377266684,1754308522462,14704.11498714,0.0003299,2]
[377266685,1754308522486,18003.36652088,0.0003299,2]
[377266686,1754308526230,1244.38336904,0.00033201,2]
[377266687,1754308527037,-171.29117867,0.00033383,3]
[377266688,1754308529025,-300.0,0.00033383,3]
[377266689,1754308530636,-293.83146962,0.00033383,3]
[377266690,1754308533137,-176.57297905,0.00033383,3]
[377266691,1754308534662,-264.42106908,0.00033383,3]
[377266692,1754308544666,5000.0,0.00033201,2]
[377266693,1754308555277,1097.15192861,0.00033201,2]
[377266694,1754308563481,3774.09818147,0.00033201,2]
[377266695,1754308563509,1225.90181853,0.00033201,2]
[377266696,1754308579516,5000.0,0.00033201,2]
[377266697,1754308596077,5000.0,0.00033201,2]
[377266698,1754308612745,5000.0,0.00033201,2]
[377266699,1754308628331,5000.0,0.00033201,2]
[377266700,1754308638110,500.0,0.00028994,2]
[377266701,1754308641258,500.0,0.00030869,7]
[377266702,1754308641470,500.0,0.00032873,7]
[377266703,1754308643036,500.0,0.00032586,7]
[377266704,1754308643808,1167.80246849,0.00033201,2]
[377266705,1754308646165,500.0,0.00030427,7]
[377266706,1754308663404,1596.84,0.00031685,30]
[377266707,1754308663820,1596.84,0.00032836,30]
[377266708,1754308666985,-206.54635379,0.00033283,2]
[377266709,1754308670063,-24.53096377,0.00033283,2]
[377266710,1754308670086,-235.73778896,0.00033284,2]
[377266711,1754308672249,-322.88729813,0.00033284,2]
[377266712,1754308678816,1912.61571298,0.00032609,2]
[377266713,1754308678839,825.82661541,0.00032609,2]
[377266714,1754308716977,1000.0,0.00033,30]
[377266715,1754308726018,1000.0,0.00033,30]
[377266716,1754308730576,163.331601,0.00025778,2]
[377266717,1754308731969,1241.98,0.00032609,30]
[377266718,1754308737694,1000.0,0.00033,30]
[377266719,1754308751845,1000.0,0.00033,30]
[377266720,1754308762201,1000.0,0.00033,30]
[377266721,1754308801486,1103.98,0.00033,30]
[377266722,1754308804146,500.0,0.00025205,2]
[377266723,1754308804530,500.0,0.00025205,2]
[377266724,1754308805057,500.0,0.00025205,2]
[377266725,1754308806097,500.0,0.00025205,2]
[377266726,1754308806365,500.0,0.00025205,2]
[377266727,1754308806734,500.0,0.00025205,2]
[377266728,1754308809589,400.5698971,0.00025205,2]
[377266729,1754308811738,5000.0,0.00033201,2]
[377266730,1754308824129,175.0,0.00025205,7]
[377266731,1754308826473,-181.3315565,0.00033297,2]
[377266732,1754308826495,-156.6684435,0.00033343,2]
[377266733,1754308827839,5000.0,0.00033201,2]
[377266734,1754308836646,269.31943725,0.00033201,2]
[377266735,1754308845307,5000.0,0.00033201,2]
[377266736,1754308858443,297.33057618,0.00027397,2]
[377266737,1754308860220,-24.66311298,0.00033343,2]
[377266738,1754308861280,2522.66187306,0.00033201,2]
[377266739,1754308861304,2477.33812694,0.00033201,2]
[377266740,1754308871235,442.25,0.00027597,15]
[377266741,1754308871443,981.32,0.00033201,30]
[377266742,1754308871571,442.25,0.00027897,15]
[377266743,1754308871636,442.25,0.00027997,15]
[377266744,1754308871865,442.25,0.00028097,15]
[377266745,1754308871902,442.25,0.00028197,15]
[377266746,1754308871954,442.25,0.00028297,15]
[377266747,1754308872173,442.25,0.00028397,15]
[377266748,1754308872220,442.25,0.00028497,15]
[377266749,1754308872874,442.25,0.00028797,15]
[377266750,1754308873153,442.25,0.00028897,15]
[377266751,1754308873203,442.25,0.00028997,15]
[377266752,1754308873420,442.25,0.00029097,15]
[377266753,1754308873507,442.25,0.00029197,15]
[377266754,1754308873546,442.25,0.00027697,15]
[377266755,1754308873722,442.25,0.00029297,15]
[377266756,1754308873771,442.25,0.00029397,15]
[377266757,1754308874031,442.25,0.00029697,15]
[377266758,1754308874293,442.25,0.00028597,15]
[377266759,1754308874349,442.25,0.00029797,15]
[377266760,1754308874454,442.25,0.00029997,15]
[377266761,1754308874644,442.25,0.00030197,15]
[377266762,1754308874701,442.25,0.00030297,15]
[377266763,1754308874769,442.25,0.00030397,15]
[377266764,1754308874910,442.25,0.00030497,15]
[377266765,1754308874983,442.25,0.00030597,15]
[377266766,1754308875043,442.25,0.00030697,15]
[377266767,1754308875125,442.25,0.00030797,15]
[377266768,1754308875199,442.25,0.00030897,15]
[377266769,1754308875386,442.25,0.00031197,15]
[377266770,1754308875426,442.25,0.00030997,15]
[377266771,1754308875703,442.25,0.00031497,15]
[377266772,1754308875767,442.25,0.00031597,15]
[377266773,1754308876027,442.25,0.00031697,15]
[377266774,1754308876067,442.25,0.00031797,15]
[377266775,1754308876251,442.25,0.00031997,15]
[377266776,1754308876291,442.25,0.00032097,15]
[377266777,1754308876359,442.25,0.00032197,15]
[377266778,1754308876425,442.25,0.00032297,15]
[377266779,1754308876571,442.25,0.00032397,15]
[377266780,1754308876629,442.25,0.00032597,15]
[377266781,1754308876686,442.25,0.00032697,15]
[377266782,1754308876778,442.25,0.00032797,15]
[377266783,1754308876867,442.25,0.00032897,60]
[377266784,1754308877140,442.25,0.00032997,60]
[377266785,1754308877181,442.25,0.00033097,60]
[377266786,1754308877351,442.25,0.00033197,60]
[377266787,1754308877384,5000.0,0.00033201,2]
[377266788,1754308881883,442.25,0.00027397,7]
[377266789,1754308882191,442.25,0.00027497,15]
[377266790,1754308882467,313.34187306,0.00027797,15]
[377266791,1754308882492,128.90812694,0.00027797,15]
[377266792,1754308882747,442.25,0.00028697,15]
[377266793,1754308882779,-239.13981074,0.00033297,60]
[377266794,1754308883016,442.25,0.00029597,15]
[377266795,1754308883318,442.25,0.00029497,15]
[377266796,1754308883961,442.25,0.00029897,15]
[377266797,1754308884380,442.25,0.00030097,15]
[377266798,1754308886113,-174.882,0.00033284,2]
[377266799,1754308886137,-41.30138158,0.00033297,60]
[377266800,1754308888184,-161.80880768,0.00033297,60]
[377266801,1754308888207,-251.03985957,0.00033343,2]
[377266802,1754308889684,442.25,0.00031097,15]
[377266803,1754308889716,442.25,0.00031397,15]
[377266804,1754308889986,363.40272191,0.00031297,15]
[377266805,1754308890010,78.84727809,0.00031297,15]
[377266806,1754308890287,442.25,0.00031897,15]
[377266807,1754308890612,442.25,0.00032497,15]
[377266808,1754308893660,-176.0,0.00033343,2]
[377266809,1754308894880,5000.0,0.00033201,2]
[377266810,1754308905483,1602.57139647,0.00033201,2]
[377266811,1754308913650,5000.0,0.00033201,2]
[377266812,1754308920994,-167.96550509,0.00033243,2]
[377266813,1754308926242,-8.01449491,0.00033243,2]
[377266814,1754308926266,-230.30432666,0.00033284,2]
[377266815,1754308927938,-244.099502,0.00033284,2]
[377266816,1754308929077,5000.0,0.00033201,2]
[377266817,1754308930060,-14.39312257,0.00033284,2]
[377266818,1754308942647,500.0,0.00029352,2]
[377266819,1754308942675,-201.24587743,0.00033284,30]
[377266820,1754308943046,500.0,0.00031609,7]
[377266821,1754308944118,-537.6786192,0.00033284,30]
[377266822,1754308944843,5000.0,0.00033201,2]
[377266823,1754308945809,-133.35550337,0.00033284,30]
[377266824,1754308948231,500.0,0.00029133,2]
[377266825,1754308948749,500.0,0.00031472,7]
[377266826,1754308961188,2209.4231985,0.00033201,2]
[377266827,1754308961211,2790.5768015,0.00033201,2]
[377266828,1754308977414,5000.0,0.00033201,2]
[377266829,1754308980073,2398.90969304,0.00032666,2]
[377266830,1754308993570,5000.0,0.00033201,2]
[377266831,1754309009738,5000.0,0.00033201,2]
[377266832,1754309011274,775.36,0.00032666,30]
[377266836,1754309025820,5000.0,0.00033201,2]
[377266837,1754309031874,233.270648,0.00025778,2]
[377266838,1754309032297,152.81168209,0.00026044,2]
[377266839,1754309041756,3649.07117537,0.00033201,2]
[377266840,1754309041780,1350.92882463,0.00033201,2]
[377266841,1754309057564,5000.0,0.00033201,2]
[377266842,1754309074323,5000.0,0.00033201,2]
[377266843,1754309082911,-161.83001186,0.00033286,2]
[377266844,1754309083631,689.21,0.00031771,30]
[377266845,1754309084064,689.21,0.00032918,30]
[377266846,1754309085794,-19.50154462,0.00033286,2]
[377266847,1754309104858,-166.63302358,0.00033319,3]
[377266848,1754309106445,-246.87546046,0.00033319,3]
[377266849,1754309108492,-215.334735,0.00033319,3]
[377266850,1754309113510,-223.36648507,0.00033319,3]
[377266851,1754309117046,-181.62222343,0.00033319,3]
[377266852,1754309120147,-162.74426207,0.00033319,3]
[377266853,1754309122346,-160.0,0.00033319,3]
[377266854,1754309155579,-27.42381039,0.00033319,3]
[377266855,1754309155602,-536.06,0.00033319,30]
[377266856,1754309155624,-5000.0,0.0003332,2]
[377266857,1754309155646,-96.36080295,0.00033343,2]
[377266858,1754309156718,109.15538666,0.00033283,2]
[377266859,1754309165134,5000.0,0.00033201,2]
[377266860,1754309180958,5000.0,0.00033201,2]
[377266861,1754309193151,160.66782,0.00013699,2]
[377266862,1754309193371,160.66782,0.00022505,2]
[377266863,1754309193567,160.66782,0.00031311,2]
[377266867,1754309197131,5000.0,0.00033201,2]
[377266868,1754309214267,1788.64771537,0.00033201,2]
[377266869,1754309214290,3211.35228463,0.00033201,2]
[377266870,1754309222329,-300.0,0.00033283,2]
[377266871,1754309225733,476.49,0.00033201,30]
[377266872,1754309230311,5000.0,0.00033201,2]
[377266873,1754309241072,500.0,0.00030855,7]
[377266874,1754309245822,5000.0,0.00033201,2]
[377266875,1754309262232,5000.0,0.00033201,2]
[377266876,1754309268154,164.148008,0.00032237,120]
[377266877,1754309277939,5000.0,0.00033201,2]
[377266878,1754309281648,2773.95420387,0.00031101,2]
[377266879,1754309293778,2874.0555035,0.00033201,2]
[377266880,1754309293801,2125.9444965,0.00033201,2]
[377266881,1754309296254,423.55,0.00033201,30]
[377266911,1754309309262,5000.0,0.00033201,2]
[377266918,1754309309482,22450.5055035,0.00032229,2]
[377266920,1754309309504,2449.4944965,0.00032229,2]
[377266973,1754309324861,5000.0,0.00033201,2]
[377266974,1754309337915,221.456589,0.00032295,2]
[377266975,1754309340887,5000.0,0.00033201,2]
[377266976,1754309356593,5000.0,0.00033201,2]
[377266978,1754309368128,376.49,0.00032229,30]
[377266979,1754309373080,5000.0,0.00033201,2]
[377266980,1754309389074,705.670211,0.00032289,2]
[377266981,1754309389821,5000.0,0.00033201,2]
[377266982,1754309406295,1246.8887035,0.00033201,2]
[377266983,1754309406319,3753.1112965,0.00033201,2]
[377266984,1754309421799,5000.0,0.00033201,2]
[377266992,1754309432368,-376.55290895,0.00033283,2]
[377266993,1754309432379,-181.33155648,0.00033283,2]
[377266994,1754309432388,-376.49,0.00033297,30]
[377266995,1754309432398,-348.93377502,0.00033343,2]
[377266996,1754309432408,-2030.296672,0.00033366,2]
[377266997,1754309432418,-400.0,0.00033372,2]
[377266998,1754309432427,-400.0,0.00033372,3]
[377266999,1754309432437,-500.0,0.00033373,5]
[377267000,1754309432448,-501.68307448,0.00033373,5]
[377267001,1754309432458,-500.92639203,0.00033373,5]
[377267002,1754309432468,-500.9879628,0.00033373,5]
[377267003,1754309432479,-500.0,0.00033373,5]
[377267005,1754309432490,-500.0,0.00033373,5]
[377267006,1754309432500,-256.19328867,0.00033375,10]
[377267007,1754309432512,-505.69671133,0.00033375,10]
[377267008,1754309432522,-569.04495348,0.00033375,10]
[377267009,1754309432533,-65.86504652,0.00033375,10]
[377267010,1754309432543,-2468.01501135,0.00033376,2]
[377267011,1754309432552,-546.37341252,0.00033377,2]
[377267012,1754309432564,-1266.26036394,0.00033377,2]
[377267013,1754309432576,-655.38123489,0.00033377,2]
[377267014,1754309432585,-532.06,0.00033377,3]
[377267015,1754309432595,-460.0,0.00033382,2]
[377267016,1754309432605,-460.0,0.00033382,2]
[377267017,1754309432615,-460.0,0.00033382,2]
[377267018,1754309432624,-460.0,0.00033382,2]
[377267019,1754309432634,-243.77506138,0.00033382,2]
[377267084,1754309438160,5000.0,0.00033201,2]
[377267107,1754309438371,-500.0,0.0003338,7]
[377267109,1754309438382,-500.0,0.0003338,2]
[377267111,1754309438391,-500.0,0.0003338,7]
[377267113,1754309438401,-500.0,0.0003338,2]
[377267115,1754309438410,-497.20333372,0.0003338,2]
[377267117,1754309438420,-500.0,0.0003338,7]
[377267119,1754309438430,-1196.53493862,0.00033382,2]
[377267121,1754309438440,-460.0,0.00033382,2]
[377267123,1754309438450,-460.0,0.00033382,2]
[377267125,1754309438460,-1659.23,0.00033382,2]
[377267127,1754309438469,-460.0,0.00033382,2]
[377267129,1754309438479,-172.83675035,0.00033382,7]
[377267131,1754309438488,-281.92576575,0.00033382,7]
[377267133,1754309438499,-232.62251668,0.00033382,2]
[377267135,1754309438509,-460.0,0.00033383,2]
[377267137,1754309438518,-471.58,0.00033383,2]
[377267139,1754309438528,-541.66,0.00033383,2]
[377267141,1754309438537,-460.0,0.00033383,2]
[377267143,1754309438547,-460.0,0.00033383,2]
[377267145,1754309438555,-460.0,0.00033383,2]
[377267147,1754309438565,-401.01909626,0.00033383,2]
[377267149,1754309438575,-460.0,0.00033383,2]
[377267151,1754309438585,-602.76,0.00033383,2]
[377267153,1754309438595,-460.0,0.00033383,2]
[377267155,1754309438605,-460.0,0.00033383,2]
[377267157,1754309438616,-460.0,0.00033383,2]
[377267159,1754309438625,-461.58329402,0.00033383,2]
[377267161,1754309438635,-460.0,0.00033383,2]
[377267163,1754309438645,-460.0,0.00033383,2]
[377267165,1754309438654,-460.0,0.00033383,2]
[377267167,1754309438663,-460.0,0.00033383,2]
[377267169,1754309438673,-460.0,0.00033383,2]
[377267171,1754309438682,-460.0,0.00033383,2]
[377267173,1754309438691,-460.0,0.00033383,2]
[377267175,1754309438702,-160.181,0.00033383,35]
[377267177,1754309438711,-460.0,0.00033383,2]
[377267179,1754309438720,-461.11661496,0.00033383,2]
[377267181,1754309438730,-460.0,0.00033383,2]
[377267183,1754309438739,-460.0,0.00033383,2]
[377267185,1754309438748,-821.72,0.00033383,2]
[377267187,1754309438758,-460.0,0.00033383,2]
[377267189,1754309438768,-460.0,0.00033383,2]
[377267191,1754309438777,-460.0,0.00033383,2]
[377267193,1754309438787,-460.0,0.00033383,2]
[377267195,1754309438796,-460.0,0.00033383,2]
[377267197,1754309438805,-460.0,0.00033383,2]
[377267199,1754309438814,-460.0,0.00033383,2]
[377267201,1754309438825,-460.0,0.00033383,2]
[377267203,1754309438834,-460.0,0.00033383,2]
[377267205,1754309438844,-460.0,0.00033383,2]
[377267207,1754309438853,-540.0,0.00033383,2]
[377267209,1754309438864,-460.0,0.00033383,2]
[377267211,1754309438875,-460.0,0.00033383,2]
[377267213,1754309438885,-460.0,0.00033383,2]
[377267215,1754309438895,-460.0,0.00033383,2]
[377267217,1754309438906,-460.0,0.00033383,2]
[377267219,1754309438917,-460.0,0.00033383,2]
[377267221,1754309438927,-460.0,0.00033383,2]
[377267223,1754309438936,-460.0,0.00033383,2]
[377267226,1754309438946,-460.0,0.00033383,2]
[377267228,1754309438960,-460.0,0.00033383,2]